bitfinex-derivatives/quotes_SOLF0:USTF0_20250928
["timestamp","ask_amount","ask_price","bid_price","bid_amount"]
[1759081615810,11.6535,205.71,205.62,9.70059299]
[1759081616013,4.3739,205.69,205.59,1.70059299]
[1759081616412,7.28,205.69,205.6,1.70059299]
[1759081616606,7.78753232,205.79,205.67,8.0]
[1759081616811,7.78753232,205.79,205.71,1.70059299]
[1759081617519,7.78753232,205.79,205.7,9.70059299]
[1759081618219,7.78753232,205.79,205.7,8.0]
[1759081618510,4.3722,205.77,205.7,9.70059299]
[1759081618716,4.3722,205.77,205.7,1.70059299]
[1759081619419,4.3726,205.75,205.7,1.70059299]
[1759081619811,7.28,205.74,205.7,1.70059299]
[1759081620413,7.28,205.74,205.66,8.0]
[1759081620808,7.28,205.74,205.68,1.70059299]
[1759081621116,4.3721,205.78,205.71,1.70059299]
[1759081621416,0.50753232,205.79,205.71,1.70059299]
[1759081621717,7.28,205.8,205.72,8.0]
[1759081622813,68.0058,205.79,205.71,1.70059299]
[1759081623017,68.0058,205.79,205.7,1.70059299]
[1759081623219,4.3722,205.77,205.7,1.70059299]
[1759081623513,75.2825,205.8,205.7,9.70059299]
[1759081623514,7.28,205.8,205.7,9.70059299]
[1759081623920,7.28,205.8,205.71,1.70059299]
[1759081624217,75.2819,205.8,205.71,1.70059299]
[1759081624418,4.3721,205.78,205.71,1.70059299]
[1759081625006,7.28,205.8,205.74,1.70059299]
[1759081625211,7.28,205.85,205.77,1.70059299]
[1759081626113,8.98059299,205.85,205.75,1.70059299]
[1759081626719,4.3709,205.83,205.75,1.70059299]
[1759081627516,7.28,205.85,205.75,1.70059299]
[1759081627719,1.70059299,205.89,205.78,1.70059299]
[1759081628020,8.98059299,205.89,205.79,8.0]
[1759081628222,76.95319299,205.89,205.78,1.70059299]
[1759081628420,7.28,205.87,205.78,1.70059299]
[1759081629217,4.3705,205.85,205.78,1.70059299]
[1759081630619,4.3709,205.83,205.78,1.70059299]
[1759081630823,4.3709,205.83,205.78,9.70059299]
[1759081631020,4.3709,205.83,205.72,35.42]
[1759081631021,4.3713,205.81,205.74,8.0]
[1759081631215,67.979,205.87,205.69,38.18050276]
[1759081631216,7.28,205.88,205.77,9.70059299]
[1759081631414,7.28,205.88,205.77,8.0]
[1759081631614,4.3704,205.85,205.79,1.70059299]
[1759081632019,69.67289299,205.89,205.78,1.70059299]
[1759081632020,67.9792,205.87,205.78,1.70059299]
[1759081632227,11.8304,205.86,205.77,8.0]
[1759081632415,75.4305,205.9,205.8,7.58]
[1759081632616,7.46,205.89,205.76,10.22343331]
[1759081632814,4.3703,205.86,205.76,7.58]
[1759081633022,4.3703,205.86,205.76,10.22343331]
[1759081633221,4.3692,205.91,205.81,2.64343331]
[1759081633426,7.46,205.92,205.81,2.64343331]
[1759081633624,7.46,205.92,205.8,7.58]
[1759081633824,7.46,205.89,205.8,7.58]
[1759081635128,7.46,205.89,205.75,2.64343331]
[1759081635129,67.9757,205.88,205.75,10.22343331]
[1759081635321,7.46,205.87,205.75,10.22343331]
[1759081635626,4.3702,205.86,205.75,14.59593331]
[1759081635828,7.46,205.87,205.75,10.22343331]
[1759081636324,67.991,205.84,205.7,7.58]
[1759081636627,75.4527,205.83,205.7,7.58]
[1759081636828,7.46,205.81,205.7,7.58]
[1759081637028,4.3716,205.8,205.7,7.58]
[1759081638428,11.832,205.78,205.7,7.58]
[1759081639628,11.832,205.78,205.68,2.64343331]
[1759081640231,4.3724,205.76,205.68,2.64343331]
[1759081640429,7.46,205.75,205.68,2.64343331]
[1759081640925,7.46,205.75,205.67,2.64343331]
[1759081641124,7.46,205.75,205.66,7.58]
[1759081641327,75.42,205.79,205.7,7.58]
[1759081641525,7.46,205.8,205.72,2.64343331]
[1759081641921,4.3711,205.83,205.73,7.58]
[1759081642424,4.3713,205.81,205.73,7.58]
[1759081642619,7.46,205.82,205.73,7.58]
[1759081645426,7.46,205.82,205.75,3.91866429]
[1759081645827,7.46,205.82,205.73,3.91866429]
[1759081646131,122.56,205.83,205.73,3.91866429]
[1759081646132,7.93,205.79,205.73,3.91866429]
[1759081646330,4.3715,205.8,205.74,3.91866429]
[1759081646530,12.3015,205.8,205.74,3.91866429]
[1759081646731,12.3015,205.8,205.73,3.91866429]
[1759081647129,7.93,205.8,205.73,3.91866429]
[1759081647328,7.93,205.8,205.74,3.91866429]
[1759081648928,7.93,205.84,205.75,3.91866429]
[1759081650029,7.93,205.84,205.74,8.29126429]
[1759081655038,7.93,205.84,205.75,7.6]
[1759081655239,7.93,205.84,205.75,11.51866429]
[1759081655538,12.3008,205.84,205.75,7.6]
[1759081657740,12.3008,205.84,205.75,11.51866429]
[1759081658433,2.64343331,205.88,205.74,4.3726]
[1759081658434,7.93,205.85,205.74,3.91866429]
[1759081658938,109.24,205.85,205.73,11.51866429]
[1759081659129,70.61943331,205.88,205.73,11.51866429]
[1759081659334,4.3709,205.83,205.74,3.91866429]
[1759081660236,4.3709,205.83,205.75,7.6]
[1759081660431,4.3709,205.83,205.75,11.51866429]
[1759081661234,7.93,205.84,205.76,4.01183485]
[1759081661542,7.93,205.84,205.77,4.01183485]
[1759081661741,12.3008,205.84,205.77,4.01183485]
[1759081664239,7.93,205.84,205.78,4.01183485]
[1759081664439,10.57343331,205.88,205.79,11.61183485]
[1759081665242,7.93,205.87,205.79,11.61183485]
[1759081665438,7.93,205.87,205.79,7.6]
[1759081666530,4.3706,205.85,205.79,7.6]
[1759081667841,4.3706,205.85,205.79,11.61183485]
[1759081668645,12.3001,205.87,205.79,11.61183485]
[1759081668940,7.93,205.87,205.79,11.61183485]
[1759081669237,7.93,205.87,205.79,7.6]
[1759081669437,7.93,205.87,205.79,11.61183485]
[1759081669742,4.3704,205.86,205.79,11.61183485]
[1759081670135,7.93,205.87,205.79,11.61183485]
[1759081671544,4.3706,205.85,205.79,11.61183485]
[1759081672344,12.3008,205.84,205.79,11.61183485]
[1759081672542,12.3008,205.84,205.8,7.6]
[1759081672746,4.3708,205.84,205.8,7.6]
[1759081673446,12.3008,205.84,205.8,7.6]
[1759081673644,4.371,205.83,205.78,12.01183485]
[1759081673948,12.111,205.83,205.79,8.0]
[1759081674137,4.371,205.83,205.79,8.0]
[1759081674644,7.74,205.81,205.77,4.01183485]
[1759081674941,7.74,205.81,205.77,12.01183485]
[1759081675150,4.3715,205.8,205.77,12.01183485]
[1759081675536,7.74,205.82,205.76,4.01183485]
[1759081675537,7.74,205.81,205.76,4.01183485]
[1759081675745,3.79696323,205.8,205.74,4.01183485]
[1759081675943,11.53696323,205.79,205.72,4.01183485]
[1759081676145,7.74,205.76,205.7,8.0]
[1759081676538,124.20343331,205.79,205.7,8.0]
[1759081676539,3.79748827,205.75,205.7,8.0]
[1759081676745,4.373,205.73,205.66,8.0]
[1759081680452,7.74,205.75,205.66,8.0]
[1759081680957,3.79289251,205.74,205.66,8.0]
[1759081681150,7.74,205.75,205.66,8.0]
[1759081681346,75.765,205.73,205.62,5.35275178]
[1759081681552,7.74,205.71,205.62,8.0]
[1759081681748,7.74,205.69,205.62,8.0]
[1759081682348,7.74,205.68,205.56,4.3765]
[1759081682551,7.74,205.68,205.57,8.0]
[1759081683557,4.3745,205.67,205.57,12.3764]
[1759081684058,4.3747,205.66,205.57,8.0]
[1759081686658,4.3749,205.64,205.57,8.0]
[1759081687450,4.3753,205.62,205.54,0.80282906]
[1759081687652,7.74,205.63,205.55,8.0]
[1759081688659,7.74,205.59,205.55,8.0]
[1759081689058,12.1158,205.6,205.54,0.80282906]
[1759081689856,4.3762,205.59,205.54,0.80282906]
[1759081690059,7.74,205.58,205.54,0.80282906]
[1759081690656,2.64343331,205.57,205.54,0.80282906]
[1759081690858,7.74,205.54,205.47,8.0]
[1759081691059,10.38343331,205.54,205.47,8.0]
[1759081691658,78.47153331,205.54,205.39,7.95]
[1759081692254,1.69788784,205.49,205.39,7.95]
[1759081692763,1.69788784,205.49,205.41,7.95]
[1759081693063,1.69788784,205.46,205.4,7.95]
[1759081694760,68.0881,205.54,205.42,7.95]
[1759081694761,4.3781,205.5,205.42,7.95]
[1759081694962,62.6,205.55,205.42,7.95]
[1759081694963,68.0592,205.63,205.42,7.95]
[1759081695159,1.69788784,205.52,205.42,7.95]
[1759081695351,1.69788784,205.49,205.42,7.95]
[1759081695555,1.69788784,205.46,205.42,7.95]
[1759081696460,9.51788784,205.46,205.42,7.95]
[1759081696858,1.69788784,205.52,205.4,7.95]
[1759081697054,1.69788784,205.52,205.42,1.69788784]
[1759081697253,1.69788784,205.52,205.43,7.95]
[1759081697460,7.82,205.53,205.44,1.69788784]
[1759081697861,1.69788784,205.52,205.43,7.95]
[1759081698768,129.52,205.53,205.43,7.95]
[1759081698965,1.69788784,205.52,205.43,7.95]
[1759081699762,4.3777,205.51,205.43,7.95]
[1759081702260,1.69788784,205.52,205.43,7.95]
[1759081702667,7.82,205.53,205.45,1.69788784]
[1759081702970,7.82,205.53,205.46,7.95]
[1759081705771,123.17788784,205.56,205.47,1.69788784]
[1759081706276,1.69788784,205.56,205.47,1.69788784]
[1759081706574,68.06,205.63,205.46,7.95]
[1759081706575,9.02788784,205.54,205.46,7.45]
[1759081707177,1.69788784,205.52,205.46,7.45]
[1759081707876,6.07518784,205.53,205.46,7.45]
[1759081708277,4.3773,205.53,205.46,7.45]
[1759081713777,125.7373,205.53,205.46,7.45]
[1759081714480,11.7077,205.52,205.45,1.69788784]
[1759081719787,4.3778,205.51,205.45,1.69788784]
[1759081722286,4.3778,205.51,205.44,1.69788784]
[1759081724486,3.78538307,205.5,205.44,6.07698784]
[1759081724890,4.3778,205.51,205.46,1.69788784]
[1759081725280,7.33,205.5,205.46,9.14788784]
[1759081726890,4.3778,205.51,205.46,9.14788784]
[1759081727091,7.33,205.5,205.46,9.14788784]
[1759081727287,7.33,205.5,205.46,1.69788784]
[1759081727586,7.33,205.5,205.44,1.69788784]
[1759081728092,3.79202587,205.49,205.4,9.14788784]
[1759081728284,9.02788784,205.5,205.4,9.14788784]
[1759081728285,7.33,205.48,205.4,9.14788784]
[1759081729489,3.7972024,205.47,205.4,9.14788784]
[1759081729689,11.7085,205.48,205.4,9.14788784]
[1759081730194,3.79953565,205.47,205.4,9.14788784]
[1759081730394,11.7085,205.48,205.4,9.14788784]
[1759081730595,3.79953565,205.47,205.4,9.14788784]
[1759081730796,11.7085,205.48,205.4,9.14788784]
[1759081731090,3.79953565,205.47,205.4,9.14788784]
[1759081731290,11.7085,205.48,205.4,9.14788784]
[1759081731495,3.80256865,205.47,205.4,9.14788784]
[1759081731790,4.3787,205.47,205.4,7.45]
[1759081732188,4.3787,205.47,205.39,4.3802]
[1759081732189,7.33,205.45,205.41,1.69788784]
[1759081732390,7.33,205.45,205.42,7.45]
[1759081733792,7.79,205.52,205.43,1.69788784]
[1759081733995,3.80700724,205.51,205.45,1.69788784]
[1759081734189,3.80700724,205.5,205.45,1.69788784]
[1759081734386,7.79,205.53,205.46,7.35]
[1759081734593,3.80820774,205.52,205.46,7.35]
[1759081734794,3.80820774,205.51,205.45,1.69788784]
[1759081734993,3.80820774,205.5,205.46,7.35]
[1759081735290,4.3776,205.52,205.46,7.35]
[1759081735494,3.81003329,205.51,205.45,13.42668784]
[1759081735694,3.81003329,205.5,205.46,7.35]
[1759081735891,4.3776,205.52,205.45,13.42668784]
[1759081736091,1.69788784,205.48,205.4,7.35]
[1759081736291,11.60003329,205.47,205.4,7.35]
[1759081736493,3.81003329,205.46,205.4,7.35]
[1759081736692,4.3793,205.44,205.4,7.35]
[1759081736896,14.9851833,205.43,205.4,7.35]
[1759081737092,7.79,205.43,205.4,7.35]
[1759081738386,12.1693,205.44,205.37,19.63267817]
[1759081741195,4.3795,205.43,205.37,0.72470338]
[1759081741395,1.69788784,205.42,205.37,0.72470338]
[1759081741591,7.79,205.39,205.33,7.35]
[1759081742100,12.1704,205.39,205.33,7.35]
[1759081742491,13.86828784,205.39,205.33,7.35]
[1759081743294,4.3806,205.38,205.33,7.35]
[1759081743495,1.69788784,205.42,205.33,7.35]
[1759081743697,1.69788784,205.44,205.35,7.35]
[1759081743999,1.69788784,205.44,205.32,68.1605]
[1759081744000,7.79,205.45,205.38,7.35]
[1759081745997,9.48788784,205.45,205.38,7.35]
[1759081747804,9.48788784,205.45,205.39,4.3802]
[1759081748004,7.79,205.45,205.39,4.3802]
[1759081748314,9.48788784,205.45,205.34,1.69788784]
[1759081748507,68.1112,205.47,205.34,1.69788784]
[1759081748508,12.1696,205.42,205.34,13.42908784]
[1759081748805,1.69788784,205.41,205.34,7.35]
[1759081749201,6.07788784,205.41,205.34,7.35]
[1759081749400,1.69788784,205.44,205.34,9.04788784]
[1759081750104,7.79,205.41,205.35,4.3809]
[1759081750303,7.79,205.41,205.34,7.35]
[1759081750802,12.1698,205.41,205.34,7.35]
[1759081751608,1.69788784,205.4,205.34,7.35]
[1759081752008,6.07808784,205.4,205.34,7.35]
[1759081752306,7.26,205.39,205.3,13.48978784]
[1759081753197,7.26,205.39,205.3,1.69788784]
[1759081753397,7.26,205.41,205.32,1.69788784]
[1759081753603,7.26,205.41,205.33,7.41]
[1759081754108,4.3802,205.4,205.33,7.41]
[1759081756606,7.26,205.39,205.3,14.61275946]
[1759081756805,2.65513471,205.4,205.28,128.07]
[1759081757005,7.26,205.38,205.28,128.07]
[1759081757407,188.7777,205.39,205.28,128.07]
[1759081757610,4.381,205.36,205.28,128.07]
[1759081757803,7.26,205.35,205.28,128.07]
[1759081758203,7.26,205.35,205.28,7.41]
[1759081758611,11.6412,205.35,205.28,7.41]
[1759081759110,4.3815,205.34,205.28,7.41]
[1759081759814,7.26,205.33,205.25,11.7932]
[1759081760214,2.65513471,205.41,205.26,2.65513471]
[1759081760410,7.26,205.39,205.27,7.41]
[1759081760804,116.66,205.39,205.27,7.41]
[1759081761009,7.26,205.39,205.29,11.7922]
[1759081761308,54.5,205.38,205.26,7.41]
[1759081761510,102.36,205.37,205.27,7.41]
[1759081761709,7.26,205.37,205.27,7.41]
[1759081762110,7.26,205.37,205.28,4.3824]
[1759081763320,7.26,205.37,205.29,4.3822]
[1759081765915,9.91513471,205.37,205.27,7.41]
[1759081766720,61.94,205.36,205.27,7.41]
[1759081766920,7.33,205.35,205.27,7.41]
[1759081767320,7.33,205.35,205.26,4.3829]
[1759081767623,89.94,205.34,205.28,4.3825]
[1759081767814,7.33,205.35,205.28,4.3825]
[1759081768214,7.33,205.35,205.29,4.3822]
[1759081770325,7.33,205.35,205.27,11.6927]
[1759081774627,11.7113,205.34,205.27,11.6927]
[1759081774826,11.7113,205.34,205.27,7.31]
[1759081775022,7.33,205.34,205.27,7.31]
[1759081777521,11.7114,205.34,205.27,7.31]
[1759081777719,7.33,205.34,205.23,7.31]
[1759081777919,7.33,205.32,205.23,7.31]
[1759081778124,7.33,205.28,205.21,0.70171233]
[1759081778324,7.33,205.28,205.2,7.31]
[1759081779525,7.33,205.28,205.17,7.31]
[1759081779725,2.65513471,205.3,205.17,7.31]
[1759081779726,4.3834,205.25,205.17,7.31]
[1759081780227,7.33,205.24,205.17,7.31]
[1759081780529,11.7136,205.24,205.17,7.31]
[1759081781130,11.7136,205.24,205.14,4.3855]
[1759081781323,11.7136,205.24,205.15,7.31]
[1759081784731,11.7136,205.24,205.15,22.14832259]
[1759081784936,7.33,205.21,205.12,11.696]
[1759081785233,7.33,205.21,205.12,7.31]
[1759081786039,4.3843,205.2,205.12,21.61248653]
[1759081786235,7.33,205.19,205.12,7.31]
[1759081786941,4.3847,205.18,205.12,7.31]
[1759081787138,7.33,205.17,205.07,9.96513471]
[1759081787645,4.3852,205.16,205.07,9.96513471]
[1759081788344,11.7156,205.14,205.07,9.96513471]
[1759081788543,11.7156,205.14,205.07,7.31]
[1759081789943,7.33,205.14,205.07,7.31]
[1759081792339,4.3847,205.18,205.07,7.31]
[1759081792548,11.7147,205.18,205.1,2.65513471]
[1759081792746,11.7147,205.18,205.11,7.31]
[1759081793445,7.33,205.16,205.07,7.31]
[1759081794952,19.94,205.21,205.09,2.65513471]
[1759081795139,11.7943,205.2,205.1,12.3862]
[1759081795749,11.7943,205.2,205.11,8.0]
[1759081796145,4.3847,205.19,205.11,8.0]
[1759081798147,4.3849,205.17,205.11,8.0]
[1759081798553,7.41,205.2,205.11,8.0]
[1759081799853,4.3845,205.19,205.11,12.386]
[1759081800450,4.384,205.22,205.14,8.0]
[1759081802946,11.7934,205.24,205.15,8.0]
[1759081803147,4.3834,205.24,205.15,8.0]
[1759081803551,4.3839,205.22,205.15,12.3852]
[1759081804046,7.41,205.26,205.15,12.3852]
[1759081804047,7.41,205.26,205.16,8.0]
[1759081804248,7.41,205.3,205.19,2.65513471]
[1759081804445,7.41,205.3,205.2,8.0]
[1759081804650,4.3819,205.32,205.23,8.0]
[1759081805960,11.7913,205.34,205.25,8.0]
[1759081806152,11.7913,205.34,205.26,8.0]
[1759081806352,7.41,205.39,205.26,12.3828]
[1759081806653,3.82799595,205.38,205.29,8.0]
[1759081807051,7.41,205.39,205.29,8.0]
[1759081808058,7.41,205.39,205.29,10.65513471]
[1759081808262,4.3804,205.38,205.29,10.65513471]
[1759081808760,7.41,205.39,205.3,12.382]
[1759081808956,7.41,205.43,205.33,8.0]
[1759081810358,7.41,205.4,205.29,10.65513471]
[1759081811154,7.41,205.4,205.3,8.0]
[1759081811551,68.1363,205.39,205.3,8.0]
[1759081811856,7.41,205.34,205.3,8.0]
[1759081812060,4.381,205.35,205.3,8.0]
[1759081812262,7.41,205.39,205.3,8.0]
[1759081812455,91.75,205.39,205.3,8.0]
[1759081813657,4.3804,205.38,205.3,8.0]
[1759081815763,7.41,205.39,205.3,8.0]
[1759081815961,7.41,205.39,205.32,7.49]
[1759081816562,9.10985504,205.39,205.29,1.69985504]
[1759081817062,129.86985504,205.39,205.29,1.69985504]
[1759081817261,9.10985504,205.39,205.29,1.69985504]
[1759081817467,7.41,205.39,205.33,1.69985504]
[1759081819263,7.41,205.39,205.31,1.69985504]
[1759081819463,9.10985504,205.39,205.29,1.69985504]
[1759081820165,9.10985504,205.39,205.31,1.69985504]
[1759081820567,4.3806,205.38,205.31,1.69985504]
[1759081821168,4.3809,205.36,205.28,7.49]
[1759081821378,4.3809,205.36,205.3,1.69985504]
[1759081823267,4.3812,205.34,205.3,1.69985504]
[1759081823463,7.96,205.33,205.28,9.18985504]
[1759081823767,11.9212,205.34,205.28,1.69985504]
[1759081824166,11.9212,205.34,205.26,1.69985504]
[1759081824371,7.54,205.34,205.26,6.08275504]
[1759081824569,7.54,205.34,205.28,1.69985504]
[1759081825169,4.3808,205.37,205.3,1.69985504]
[1759081827974,11.921,205.36,205.3,1.69985504]
[1759081828174,11.921,205.36,205.28,1.69985504]
[1759081828678,7.54,205.37,205.28,1.69985504]
[1759081829081,4.3812,205.35,205.28,1.69985504]
[1759081829280,7.54,205.34,205.28,1.69985504]
[1759081830180,7.54,205.34,205.23,4.3834]
[1759081830380,7.54,205.34,205.24,1.69985504]
[1759081832087,7.54,205.34,205.25,4.383]
[1759081832975,11.9214,205.34,205.25,4.383]
[1759081833388,7.54,205.34,205.25,4.383]
[1759081835384,7.54,205.34,205.24,9.24985504]
[1759081836792,7.54,205.34,205.27,4.3826]
[1759081839288,7.54,205.34,205.25,1.69985504]
[1759081839489,1.69985504,205.38,205.28,1.69985504]
[1759081839687,7.54,205.4,205.31,1.69985504]
[1759081839993,7.54,205.4,205.32,4.3815]
[1759081841898,128.04,205.4,205.32,4.3815]
[1759081842093,7.54,205.4,205.32,4.3815]
[1759081842989,7.54,205.4,205.32,11.9315]
[1759081843187,7.54,205.4,205.33,4.3813]
[1759081845389,7.54,205.4,205.32,7.55]
[1759081846297,7.54,205.4,205.33,4.3814]
[1759081846602,127.55940807,205.39,205.28,7.55]
[1759081846897,127.55940807,205.39,205.28,11.9325]
[1759081846898,7.54,205.37,205.28,11.9325]
[1759081847292,128.0,205.37,205.28,11.9325]
[1759081847591,7.54,205.37,205.29,4.3822]
[1759081847897,67.1,205.37,205.29,4.3822]
[1759081848099,7.54,205.37,205.29,4.3822]
[1759081848297,3.38146912,205.36,205.29,4.3822]
[1759081848500,7.54,205.37,205.29,4.3822]
[1759081848691,3.38146912,205.36,205.29,4.3822]
[1759081848892,11.9208,205.37,205.29,4.3822]
[1759081849093,3.79599009,205.36,205.29,4.3822]
[1759081849299,11.9208,205.37,205.29,4.3822]
[1759081849498,7.18086528,205.36,205.29,4.3822]
[1759081849698,11.9208,205.37,205.28,7.55]
[1759081849999,9.23985504,205.35,205.28,7.55]
[1759081853298,9.23985504,205.35,205.25,4.3831]
[1759081853499,54.55985504,205.35,205.25,4.3831]
[1759081853695,9.23985504,205.35,205.25,4.3831]
[1759081853898,97.53985504,205.35,205.25,4.3831]
[1759081854195,7.55,205.33,205.25,4.3831]
[1759081856907,1.69985504,205.29,205.21,7.76]
[1759081857911,7.55,205.31,205.21,7.76]
[1759081858112,4.04018025,205.3,205.21,7.76]
[1759081858311,7.55,205.31,205.21,7.76]
[1759081858514,4.03979843,205.3,205.23,4.3835]
[1759081858710,7.55,205.31,205.23,4.3835]
[1759081858901,7.55,205.31,205.23,7.76]
[1759081859106,7.55,205.35,205.25,7.76]
[1759081859304,7.49897871,205.34,205.25,7.76]
[1759081859507,4.03932905,205.33,205.25,7.76]
[1759081859708,7.55,205.35,205.27,7.76]
[1759081859907,4.03929389,205.34,205.27,7.76]
[1759081860115,7.55,205.35,205.27,7.76]
[1759081860116,4.03909569,205.33,205.27,7.76]
[1759081860316,7.55,205.35,205.27,7.76]
[1759081860516,4.03935269,205.34,205.27,7.76]
[1759081860716,4.03935269,205.33,205.27,7.76]
[1759081861017,7.55,205.35,205.27,7.76]
[1759081861217,7.49885431,205.34,205.27,7.76]
[1759081861418,4.03932076,205.33,205.27,7.76]
[1759081861614,7.55,205.35,205.27,7.76]
[1759081861816,7.49892044,205.34,205.27,12.1427]
[1759081862016,4.03940541,205.33,205.27,12.1427]
[1759081862216,7.55,205.35,205.27,12.1427]
[1759081862517,7.49885118,205.34,205.27,7.76]
[1759081862711,4.03936623,205.33,205.27,7.76]
[1759081862907,4.03936623,205.32,205.26,9.45985504]
[1759081863116,7.55,205.35,205.26,9.45985504]
[1759081863317,7.53131877,205.34,205.27,4.3827]
[1759081863518,4.06329497,205.33,205.27,4.3827]
[1759081863715,11.61329497,205.32,205.28,7.76]
[1759081863908,7.55,205.32,205.28,7.76]
[1759081864414,7.55,205.32,205.28,4.3824]
[1759081864720,7.55,205.32,205.29,7.76]
[1759081866316,73.2152003,205.42,205.26,69.87965504]
[1759081866519,7.55,205.4,205.31,1.69985504]
[1759081866720,7.55,205.38,205.31,1.69985504]
[1759081866919,7.53194384,205.37,205.3,7.76]
[1759081867115,4.06363134,205.36,205.3,7.76]
[1759081867314,4.06363134,205.35,205.3,7.76]
[1759081867519,13.63045504,205.38,205.3,7.76]
[1759081867721,7.53085182,205.37,205.3,7.76]
[1759081868021,4.06306928,205.36,205.3,7.76]
[1759081868227,4.0629557,205.35,205.3,7.76]
[1759081868427,13.63045504,205.38,205.3,7.76]
[1759081868625,7.53064065,205.37,205.3,7.76]
[1759081868822,4.0629557,205.36,205.3,7.76]
[1759081869025,4.0629557,205.35,205.3,4.382]
[1759081869219,13.63045504,205.38,205.31,7.76]
[1759081869420,7.53044045,205.37,205.31,7.76]
[1759081869614,11.61285023,205.36,205.31,7.76]
[1759081869823,4.06285023,205.35,205.31,7.76]
[1759081870023,7.55,205.36,205.31,7.76]
[1759081870223,4.06272634,205.35,205.31,7.76]
[1759081870424,7.55,205.36,205.31,7.76]
[1759081870625,4.06272619,205.35,205.31,7.76]
[1759081870820,7.55,205.36,205.31,7.76]
[1759081871021,4.06272619,205.35,205.31,7.76]
[1759081871222,7.55,205.36,205.31,7.76]
[1759081871423,4.0626216,205.35,205.31,7.76]
[1759081871623,7.55,205.37,205.31,7.76]
[1759081871925,11.6126216,205.36,205.29,7.76]
[1759081872119,7.55,205.4,205.29,7.76]
[1759081872324,7.52847342,205.39,205.29,7.76]
[1759081872527,4.06179374,205.38,205.33,4.3814]
[1759081872725,4.06179374,205.37,205.34,7.76]
[1759081872926,7.55,205.38,205.34,7.76]
[1759081873121,4.06178981,205.37,205.34,7.76]
[1759081873426,7.55,205.37,205.34,7.76]
[1759081875225,1.69985504,205.41,205.34,7.76]
[1759081875425,15.07645056,205.4,205.34,7.76]
[1759081875630,7.55,205.38,205.34,7.76]
[1759081875832,4.06067571,205.37,205.34,7.76]
[1759081876033,7.55,205.38,205.34,7.76]
[1759081876233,4.06068275,205.37,205.34,7.76]
[1759081876430,7.55,205.38,205.34,7.76]
[1759081876632,11.61040508,205.37,205.31,7.76]
[1759081876925,7.55,205.37,205.31,7.76]
[1759081877832,7.55,205.37,205.31,12.1418]
[1759081878628,7.55,205.37,205.31,7.76]
[1759081878828,4.06070643,205.36,205.31,7.76]
[1759081879029,7.55,205.34,205.31,7.76]
[1759081879631,7.55,205.34,205.28,12.1425]
[1759081884844,4.06218855,205.33,205.28,12.1425]
[1759081885046,7.55,205.34,205.28,12.1425]
[1759081885245,4.06232649,205.33,205.28,4.3825]
[1759081885541,7.69,205.33,205.29,7.3]
[1759081886240,4.3807,205.37,205.28,11.6825]
[1759081886441,7.69,205.35,205.28,11.6825]
[1759081886635,4.06236997,205.34,205.28,11.6825]
[1759081886840,11.75236997,205.33,205.29,7.3]
[1759081887145,4.381,205.36,205.29,7.3]
[1759081887346,7.69,205.34,205.25,11.6831]
[1759081887645,7.69,205.31,205.2,7.3]
[1759081887845,4.06254314,205.3,205.2,7.3]